[Event "Titled Tuesday Blitz May 31 Early 2022"]
[White "Mitrovic, Darko R"]
[Black "Gracia Alvarez, Gerardo Antonio"]
[WhiteFideId "927023"]
[BlackFideId "5109124"]
[WhiteElo "2150"]
[BlackElo "2139"]
[Result "1/2-1/2"]
[Round "11"]
[TimeControl "180+1"]
[Date "2022.06.01"]
[WhiteClock "0:00:03"]
[BlackClock "0:00:21"]

1. d4 {[%clk 0:03:00]}  Nf6 {[%clk 0:02:59]} 2. c4 {[%clk 0:02:59]}  c5 {[%clk 0:03:00]} 3. d5 {[%clk 0:02:56]}  b5 {[%clk 0:02:59]} 4. cxb5 {[%clk 0:02:56]}  a6 {[%clk 0:02:59]} 5. bxa6 {[%clk 0:02:56]}  g6 {[%clk 0:02:59]} 6. Nc3 {[%clk 0:02:56]}  Bg7 {[%clk 0:02:59]} 7. Nf3 {[%clk 0:02:56]}  O-O {[%clk 0:02:58]} 8. g3 {[%clk 0:02:56]}  d6 {[%clk 0:02:57]} 9. Bg2 {[%clk 0:02:56]}  Nbd7 {[%clk 0:02:57]} 10. O-O {[%clk 0:02:56]}  Nb6 {[%clk 0:02:58]} 11. Rb1 {[%clk 0:02:52]}  Bf5 {[%clk 0:02:54]} 12. Ra1 {[%clk 0:02:47]}  Ne4 {[%clk 0:02:54]} 13. Bd2 {[%clk 0:02:39]}  Rxa6 {[%clk 0:02:41]} 14. Nh4 {[%clk 0:02:29]}  Nxc3 {[%clk 0:02:37]} 15. Bxc3 {[%clk 0:02:27]}  Bd7 {[%clk 0:02:29]} 16. f4 {[%clk 0:02:14]}  Bxc3 {[%clk 0:02:24]} 17. bxc3 {[%clk 0:02:14]}  Qa8 {[%clk 0:02:25]} 18. Qd3 {[%clk 0:01:39]}  Rxa2 {[%clk 0:02:18]} 19. Rxa2 {[%clk 0:01:37]}  Qxa2 {[%clk 0:02:19]} 20. f5 {[%clk 0:01:15]}  Kg7 {[%clk 0:02:12]} 21. Qf3 {[%clk 0:00:58]}  Nc4 {[%clk 0:01:18]} 22. fxg6 {[%clk 0:00:23]}  hxg6 {[%clk 0:01:15]} 23. Nxg6 {[%clk 0:00:18]}  Kxg6 {[%clk 0:01:11]} 24. Qe4+ {[%clk 0:00:16]}  Kg7 {[%clk 0:01:05]} 25. Qxe7 {[%clk 0:00:16]}  Ne5 {[%clk 0:00:44]} 26. Qf6+ {[%clk 0:00:10]}  Kg8 {[%clk 0:00:37]} 27. Be4 {[%clk 0:00:07]}  Qxe2 {[%clk 0:00:30]} 28. Qg5+ {[%clk 0:00:07]}  Ng6 {[%clk 0:00:12]} 29. Bxg6 {[%clk 0:00:06]}  Qg4 {[%clk 0:00:13]} 30. Qxg4 {[%clk 0:00:04]}  Bxg4 {[%clk 0:00:12]} 31. Be4 {[%clk 0:00:02]}  Re8 {[%clk 0:00:12]} 32. Bf5 {[%clk 0:00:02]}  Bxf5 {[%clk 0:00:08]} 33. Rxf5 {[%clk 0:00:02]}  Re3 {[%clk 0:00:09]} 34. c4 {[%clk 0:00:02]}  Rc3 {[%clk 0:00:09]} 35. Rf6 {[%clk 0:00:01]}  Rc1+ {[%clk 0:00:10]} 36. Kg2 {[%clk 0:00:01]}  Rxc4 {[%clk 0:00:11]} 37. Rxd6 {[%clk 0:00:01]}  Rc2+ {[%clk 0:00:12]} 38. Kf3 {[%clk 0:00:01]}  Rd2 {[%clk 0:00:12]} 39. Rc6 {[%clk 0:00:01]}  Rxd5 {[%clk 0:00:12]} 40. Ke4 {[%clk 0:00:01]}  Rd2 {[%clk 0:00:12]} 41. Ke3 {[%clk 0:00:01]}  Rxh2 {[%clk 0:00:12]} 42. Rxc5 {[%clk 0:00:01]}  Rh6 {[%clk 0:00:13]} 43. Kf3 {[%clk 0:00:01]}  Kg7 {[%clk 0:00:13]} 44. Rg5+ {[%clk 0:00:01]}  Kf6 {[%clk 0:00:13]} 45. Rg4 {[%clk 0:00:01]}  Rh1 {[%clk 0:00:13]} 46. Rf4+ {[%clk 0:00:01]}  Ke6 {[%clk 0:00:14]} 47. Re4+ {[%clk 0:00:02]}  Kf6 {[%clk 0:00:14]} 48. Rf4+ {[%clk 0:00:02]}  Kg7 {[%clk 0:00:15]} 49. Rg4+ {[%clk 0:00:02]}  Kf8 {[%clk 0:00:15]} 50. Rf4 {[%clk 0:00:02]}  Ra1 {[%clk 0:00:16]} 51. Kg2 {[%clk 0:00:02]}  Ra2+ {[%clk 0:00:16]} 52. Kh3 {[%clk 0:00:02]}  Ke7 {[%clk 0:00:17]} 53. Rh4 {[%clk 0:00:02]}  f6 {[%clk 0:00:17]} 54. Rf4 {[%clk 0:00:02]}  Ke6 {[%clk 0:00:17]} 55. Re4+ {[%clk 0:00:02]}  Kf5 {[%clk 0:00:16]} 56. Rf4+ {[%clk 0:00:02]}  Ke5 {[%clk 0:00:17]} 57. Rh4 {[%clk 0:00:02]}  f5 {[%clk 0:00:17]} 58. Rf4 {[%clk 0:00:02]}  Ra1 {[%clk 0:00:17]} 59. Rh4 {[%clk 0:00:02]}  Rh1+ {[%clk 0:00:16]} 60. Kg2 {[%clk 0:00:02]}  Ra1 {[%clk 0:00:17]} 61. Kh3 {[%clk 0:00:01]}  Ra2 {[%clk 0:00:16]} 62. Rf4 {[%clk 0:00:01]}  Ra7 {[%clk 0:00:12]} 63. Rh4 {[%clk 0:00:01]}  Rg7 {[%clk 0:00:12]} 64. Rf4 {[%clk 0:00:02]}  Rh7+ {[%clk 0:00:13]} 65. Rh4 {[%clk 0:00:02]}  Rd7 {[%clk 0:00:13]} 66. Rf4 {[%clk 0:00:02]}  Kf6 {[%clk 0:00:13]} 67. Rh4 {[%clk 0:00:02]}  Kg5 {[%clk 0:00:12]} 68. Rf4 {[%clk 0:00:02]}  Rd1 {[%clk 0:00:12]} 69. Rh4 {[%clk 0:00:02]}  Rh1+ {[%clk 0:00:12]} 70. Kg2 {[%clk 0:00:03]}  Rxh4 {[%clk 0:00:13]} 71. gxh4+ {[%clk 0:00:03]}  Kxh4 {[%clk 0:00:14]} 72. Kf3 {[%clk 0:00:03]}  Kg5 {[%clk 0:00:14]} 73. Kg3 {[%clk 0:00:04]}  f4+ {[%clk 0:00:14]} 74. Kf3 {[%clk 0:00:04]}  Kf5 {[%clk 0:00:15]} 75. Kf2 {[%clk 0:00:04]}  Kg4 {[%clk 0:00:16]} 76. Kg2 {[%clk 0:00:04]}  f3+ {[%clk 0:00:16]} 77. Kf2 {[%clk 0:00:04]}  Kf4 {[%clk 0:00:17]} 78. Kf1 {[%clk 0:00:04]}  Ke4 {[%clk 0:00:18]} 79. Kf2 {[%clk 0:00:04]}  Kf4 {[%clk 0:00:19]} 80. Kf1 {[%clk 0:00:04]}  Kg3 {[%clk 0:00:20]} 81. Kg1 {[%clk 0:00:03]}  f2+ {[%clk 0:00:21]} 82. Kf1 {[%clk 0:00:03]}  Kf3 {[%clk 0:00:21]} 1/2-1/2


[Site "https://www.chess.com"]

[Event "Titled Tuesday Blitz May 31 Early 2022"]
[White "Muradov, Soltan"]
[Black "Buchenau, Frank"]
[WhiteFideId "14002108"]
[BlackFideId "4604350"]
[WhiteElo "1854"]
[BlackElo "2157"]
[Result "1-0"]
[Round "11"]
[TimeControl "180+1"]
[Date "2022.06.01"]
[WhiteClock "0:00:02"]
[BlackClock "0:00:02"]

1. d4 {[%clk 0:02:19]}  e6 {[%clk 0:02:59]} 2. Nf3 {[%clk 0:02:12]}  Nf6 {[%clk 0:02:58]} 3. Bf4 {[%clk 0:02:12]}  d5 {[%clk 0:02:57]} 4. e3 {[%clk 0:02:12]}  c5 {[%clk 0:02:57]} 5. c3 {[%clk 0:02:12]}  Nc6 {[%clk 0:02:57]} 6. Bd3 {[%clk 0:02:12]}  Bd6 {[%clk 0:02:57]} 7. Bg3 {[%clk 0:02:12]}  O-O {[%clk 0:02:57]} 8. Nbd2 {[%clk 0:02:12]}  b6 {[%clk 0:02:56]} 9. O-O {[%clk 0:02:12]}  Bb7 {[%clk 0:02:55]} 10. Qe2 {[%clk 0:02:12]}  Re8 {[%clk 0:02:53]} 11. Ne5 {[%clk 0:02:09]}  Qc7 {[%clk 0:02:51]} 12. Nxc6 {[%clk 0:02:09]}  Bxg3 {[%clk 0:02:47]} 13. hxg3 {[%clk 0:02:03]}  Bxc6 {[%clk 0:02:47]} 14. dxc5 {[%clk 0:02:00]}  bxc5 {[%clk 0:02:47]} 15. e4 {[%clk 0:02:01]}  Rab8 {[%clk 0:02:44]} 16. Rab1 {[%clk 0:02:01]}  a5 {[%clk 0:02:35]} 17. Rfe1 {[%clk 0:02:00]}  a4 {[%clk 0:02:24]} 18. e5 {[%clk 0:01:37]}  Nd7 {[%clk 0:02:22]} 19. Qh5 {[%clk 0:01:36]}  g6 {[%clk 0:02:09]} 20. Qg5 {[%clk 0:01:37]}  Rb6 {[%clk 0:01:54]} 21. Nf3 {[%clk 0:01:36]}  Reb8 {[%clk 0:01:47]} 22. Re2 {[%clk 0:01:28]}  a3 {[%clk 0:01:39]} 23. b3 {[%clk 0:01:27]}  c4 {[%clk 0:01:37]} 24. Bc2 {[%clk 0:01:26]}  cxb3 {[%clk 0:01:36]} 25. Rxb3 {[%clk 0:01:25]}  Bb5 {[%clk 0:01:18]} 26. Re3 {[%clk 0:01:20]}  Bc4 {[%clk 0:01:16]} 27. Rxa3 {[%clk 0:01:05]}  Rb2 {[%clk 0:01:12]} 28. Bb3 {[%clk 0:01:05]}  Bxb3 {[%clk 0:01:08]} 29. Rxb3 {[%clk 0:01:05]}  Rxa2 {[%clk 0:00:58]} 30. Rxb8+ {[%clk 0:01:02]}  Qxb8 {[%clk 0:00:58]} 31. Qe7 {[%clk 0:01:03]}  Ra1+ {[%clk 0:00:35]} 32. Kh2 {[%clk 0:01:03]}  Nb6 {[%clk 0:00:21]} 33. Nd4 {[%clk 0:00:53]}  Nc4 {[%clk 0:00:20]} 34. Rf3 {[%clk 0:00:53]}  Nxe5 {[%clk 0:00:15]} 35. Rf4 {[%clk 0:00:43]}  Nd3 {[%clk 0:00:13]} 36. Qxf7+ {[%clk 0:00:42]}  Kh8 {[%clk 0:00:13]} 37. Qf6+ {[%clk 0:00:42]}  Kg8 {[%clk 0:00:12]} 38. Qxe6+ {[%clk 0:00:43]}  Kh8 {[%clk 0:00:13]} 39. Qf6+ {[%clk 0:00:26]}  Kg8 {[%clk 0:00:12]} 40. Qf7+ {[%clk 0:00:27]}  Kh8 {[%clk 0:00:13]} 41. Rh4 {[%clk 0:00:28]}  Qg8 {[%clk 0:00:11]} 42. Qf6+ {[%clk 0:00:26]}  Qg7 {[%clk 0:00:12]} 43. Qd8+ {[%clk 0:00:26]}  Qg8 {[%clk 0:00:12]} 44. Qf6+ {[%clk 0:00:19]}  Qg7 {[%clk 0:00:12]} 45. Qe6 {[%clk 0:00:13]}  Nxf2 {[%clk 0:00:09]} 46. Qe8+ {[%clk 0:00:10]}  Qg8 {[%clk 0:00:09]} 47. Qe5+ {[%clk 0:00:07]}  Qg7 {[%clk 0:00:09]} 48. Qb8+ {[%clk 0:00:04]}  Qg8 {[%clk 0:00:09]} 49. Qe5+ {[%clk 0:00:04]}  Qg7 {[%clk 0:00:09]} 50. Qxg7+ {[%clk 0:00:05]}  Kxg7 {[%clk 0:00:08]} 51. g4 {[%clk 0:00:06]}  g5 {[%clk 0:00:07]} 52. Rh5 {[%clk 0:00:06]}  Nxg4+ {[%clk 0:00:07]} 53. Kg3 {[%clk 0:00:06]}  Ne3 {[%clk 0:00:05]} 54. Rxg5+ {[%clk 0:00:07]}  Kf6 {[%clk 0:00:05]} 55. Rh5 {[%clk 0:00:05]}  Rc1 {[%clk 0:00:05]} 56. Rxh7 {[%clk 0:00:04]}  Rxc3 {[%clk 0:00:04]} 57. Nf3 {[%clk 0:00:04]}  Nf5+ {[%clk 0:00:03]} 58. Kf2 {[%clk 0:00:05]}  Rc2+ {[%clk 0:00:02]} 59. Ke1 {[%clk 0:00:02]}  Rxg2 {[%clk 0:00:02]} 60. Ra7 {[%clk 0:00:02]} 1-0


[Site "https://www.chess.com"]

[Event "Titled Tuesday Blitz May 31 Early 2022"]
[White "Niemann, Hans Moke"]
[Black "Jobava, Baadur"]
[WhiteFideId "2093596"]
[BlackFideId "13601520"]
[WhiteElo "2632"]
[BlackElo "2617"]
[Result "1-0"]
[Round "11"]
[TimeControl "180+1"]
[Date "2022.05.31"]
[WhiteClock "0:00:19"]
[BlackClock "0:00:08"]

1. d4 {[%clk 0:03:00]}  c6 {[%clk 0:03:00]} 2. c4 {[%clk 0:02:58]}  d5 {[%clk 0:03:01]} 3. Nf3 {[%clk 0:02:58]}  Nf6 {[%clk 0:03:01]} 4. e3 {[%clk 0:02:58]}  Bg4 {[%clk 0:03:00]} 5. Nc3 {[%clk 0:02:54]}  e6 {[%clk 0:03:00]} 6. h3 {[%clk 0:02:54]}  Bh5 {[%clk 0:02:59]} 7. Qb3 {[%clk 0:02:48]}  Qb6 {[%clk 0:02:51]} 8. Ne5 {[%clk 0:02:47]}  Nbd7 {[%clk 0:02:47]} 9. g4 {[%clk 0:02:38]}  Bg6 {[%clk 0:02:47]} 10. Nxg6 {[%clk 0:02:38]}  hxg6 {[%clk 0:02:48]} 11. Bg2 {[%clk 0:02:37]}  Qa6 {[%clk 0:02:12]} 12. cxd5 {[%clk 0:02:37]}  exd5 {[%clk 0:02:09]} 13. Bd2 {[%clk 0:02:31]}  Qb6 {[%clk 0:02:07]} 14. O-O-O {[%clk 0:02:25]}  Qxb3 {[%clk 0:02:06]} 15. axb3 {[%clk 0:02:26]}  O-O-O {[%clk 0:02:01]} 16. f3 {[%clk 0:02:21]}  Nb6 {[%clk 0:01:49]} 17. Rhf1 {[%clk 0:02:16]}  Bb4 {[%clk 0:01:40]} 18. Ne2 {[%clk 0:02:10]}  Bxd2+ {[%clk 0:01:39]} 19. Kxd2 {[%clk 0:02:11]}  Rhe8 {[%clk 0:01:39]} 20. Nf4 {[%clk 0:02:09]}  Na8 {[%clk 0:01:33]} 21. Nd3 {[%clk 0:02:07]}  Nc7 {[%clk 0:01:32]} 22. Ra1 {[%clk 0:01:58]}  a6 {[%clk 0:01:32]} 23. Rfc1 {[%clk 0:01:48]}  Nd7 {[%clk 0:01:30]} 24. Bf1 {[%clk 0:01:42]}  Re7 {[%clk 0:01:29]} 25. Rc3 {[%clk 0:01:41]}  Rde8 {[%clk 0:01:29]} 26. Nb4 {[%clk 0:01:41]}  g5 {[%clk 0:01:25]} 27. Re1 {[%clk 0:01:36]}  Kb8 {[%clk 0:01:21]} 28. Bd3 {[%clk 0:01:35]}  Nf8 {[%clk 0:01:19]} 29. Bf1 {[%clk 0:01:14]}  Re6 {[%clk 0:01:18]} 30. Nd3 {[%clk 0:01:14]}  Nd7 {[%clk 0:01:17]} 31. Bg2 {[%clk 0:01:10]}  Nb5 {[%clk 0:01:16]} 32. Rcc1 {[%clk 0:01:10]}  Nd6 {[%clk 0:01:16]} 33. Re2 {[%clk 0:01:08]}  g6 {[%clk 0:01:16]} 34. Rh1 {[%clk 0:01:08]}  f5 {[%clk 0:01:15]} 35. f4 {[%clk 0:01:02]}  Nf6 {[%clk 0:01:04]} 36. Rg1 {[%clk 0:00:55]}  Nfe4+ {[%clk 0:01:03]} 37. Bxe4 {[%clk 0:00:53]}  fxe4 {[%clk 0:00:59]} 38. Ne5 {[%clk 0:00:50]}  gxf4 {[%clk 0:00:59]} 39. exf4 {[%clk 0:00:49]}  Rh8 {[%clk 0:00:59]} 40. Rh2 {[%clk 0:00:44]}  Rh4 {[%clk 0:00:56]} 41. Ke3 {[%clk 0:00:44]}  Kc7 {[%clk 0:00:55]} 42. Kf2 {[%clk 0:00:38]}  Rf6 {[%clk 0:00:51]} 43. Kg3 {[%clk 0:00:37]}  Rh8 {[%clk 0:00:51]} 44. Re1 {[%clk 0:00:31]}  Rhf8 {[%clk 0:00:49]} 45. Rf2 {[%clk 0:00:30]}  e3 {[%clk 0:00:49]} 46. Rxe3 {[%clk 0:00:20]}  Ne4+ {[%clk 0:00:50]} 47. Rxe4 {[%clk 0:00:21]}  dxe4 {[%clk 0:00:50]} 48. Nc4 {[%clk 0:00:21]}  Rd8 {[%clk 0:00:46]} 49. Rd2 {[%clk 0:00:21]}  b5 {[%clk 0:00:44]} 50. Ne5 {[%clk 0:00:18]}  Rfd6 {[%clk 0:00:44]} 51. Rc2 {[%clk 0:00:18]}  Re6 {[%clk 0:00:28]} 52. f5 {[%clk 0:00:17]}  gxf5 {[%clk 0:00:29]} 53. gxf5 {[%clk 0:00:18]}  Rf6 {[%clk 0:00:29]} 54. Kf4 {[%clk 0:00:18]}  Rxd4 {[%clk 0:00:28]} 55. Kg5 {[%clk 0:00:19]}  Rdd6 {[%clk 0:00:25]} 56. Re2 {[%clk 0:00:16]}  Rf8 {[%clk 0:00:21]} 57. h4 {[%clk 0:00:15]}  Rg8+ {[%clk 0:00:18]} 58. Ng6 {[%clk 0:00:15]}  Re8 {[%clk 0:00:18]} 59. h5 {[%clk 0:00:16]}  e3 {[%clk 0:00:18]} 60. h6 {[%clk 0:00:16]}  Rd2 {[%clk 0:00:18]} 61. Re1 {[%clk 0:00:16]}  Rg2+ {[%clk 0:00:18]} 62. Kf6 {[%clk 0:00:17]}  Rh2 {[%clk 0:00:18]} 63. Kg7 {[%clk 0:00:17]}  e2 {[%clk 0:00:11]} 64. f6 {[%clk 0:00:17]}  Rf2 {[%clk 0:00:10]} 65. f7 {[%clk 0:00:17]}  Rd8 {[%clk 0:00:10]} 66. f8=Q {[%clk 0:00:16]}  Rfxf8 {[%clk 0:00:09]} 67. Nxf8 {[%clk 0:00:17]}  Rd3 {[%clk 0:00:07]} 68. Rxe2 {[%clk 0:00:16]}  Rxb3 {[%clk 0:00:06]} 69. h7 {[%clk 0:00:16]}  Rg3+ {[%clk 0:00:07]} 70. Ng6 {[%clk 0:00:16]}  Rh3 {[%clk 0:00:07]} 71. h8=Q {[%clk 0:00:16]}  Rxh8 {[%clk 0:00:07]} 72. Kf7 {[%clk 0:00:17]}  Kb6 {[%clk 0:00:08]} 73. Nxh8 {[%clk 0:00:17]}  Kc5 {[%clk 0:00:07]} 74. Ng6 {[%clk 0:00:17]}  a5 {[%clk 0:00:07]} 75. Ke6 {[%clk 0:00:18]}  a4 {[%clk 0:00:08]} 76. Ne5 {[%clk 0:00:18]}  b4 {[%clk 0:00:08]} 77. Rc2+ {[%clk 0:00:18]}  Kd4 {[%clk 0:00:08]} 78. Nxc6+ {[%clk 0:00:19]}  Ke3 {[%clk 0:00:08]} 79. Nxb4 {[%clk 0:00:19]} 1-0


[Site "https://www.chess.com"]

[Event "Titled Tuesday Blitz May 31 Early 2022"]
[White "Omariev, Maksim"]
[Black "Kuznetsov, Mikhail"]
[WhiteFideId "4193423"]
[BlackFideId "4117190"]
[WhiteElo "2526"]
[BlackElo "1981"]
[Result "1-0"]
[Round "11"]
[TimeControl "180+1"]
[Date "2022.06.01"]
[WhiteClock "0:00:03"]
[BlackClock "0:00:01"]

1. g4 {[%clk 0:03:00]}  c5 {[%clk 0:02:48]} 2. Bg2 {[%clk 0:03:01]}  Nc6 {[%clk 0:02:48]} 3. c4 {[%clk 0:02:58]}  d6 {[%clk 0:02:45]} 4. h3 {[%clk 0:02:57]}  h5 {[%clk 0:02:43]} 5. g5 {[%clk 0:02:57]}  g6 {[%clk 0:02:43]} 6. Nc3 {[%clk 0:02:57]}  Bg7 {[%clk 0:02:42]} 7. d3 {[%clk 0:02:57]}  e6 {[%clk 0:02:42]} 8. e4 {[%clk 0:02:52]}  Nge7 {[%clk 0:02:42]} 9. Nge2 {[%clk 0:02:48]}  b6 {[%clk 0:02:40]} 10. Be3 {[%clk 0:02:47]}  Bb7 {[%clk 0:02:40]} 11. Qd2 {[%clk 0:02:47]}  Qd7 {[%clk 0:02:37]} 12. O-O-O {[%clk 0:02:46]}  O-O-O {[%clk 0:02:38]} 13. d4 {[%clk 0:02:40]}  cxd4 {[%clk 0:02:35]} 14. Nxd4 {[%clk 0:02:40]}  Kb8 {[%clk 0:02:10]} 15. Ndb5 {[%clk 0:02:31]}  Nc8 {[%clk 0:02:06]} 16. f4 {[%clk 0:02:15]}  a6 {[%clk 0:02:01]} 17. Nd4 {[%clk 0:01:51]}  Rhe8 {[%clk 0:01:56]} 18. Nde2 {[%clk 0:01:31]}  Qc7 {[%clk 0:01:50]} 19. Kb1 {[%clk 0:01:29]}  N8e7 {[%clk 0:01:41]} 20. Rc1 {[%clk 0:01:28]}  Nc8 {[%clk 0:01:35]} 21. Nd5 {[%clk 0:01:20]}  exd5 {[%clk 0:01:31]} 22. cxd5 {[%clk 0:01:21]}  Qd7 {[%clk 0:01:29]} 23. dxc6 {[%clk 0:01:19]}  Bxc6 {[%clk 0:01:30]} 24. Nd4 {[%clk 0:00:55]}  Bb7 {[%clk 0:01:14]} 25. Rhe1 {[%clk 0:00:37]}  Ka8 {[%clk 0:01:12]} 26. Bg1 {[%clk 0:00:36]}  b5 {[%clk 0:00:55]} 27. Qa5 {[%clk 0:00:27]}  Re7 {[%clk 0:00:47]} 28. Nxb5 {[%clk 0:00:22]}  Qxb5 {[%clk 0:00:37]} 29. Qa3 {[%clk 0:00:13]}  Nb6 {[%clk 0:00:28]} 30. b3 {[%clk 0:00:07]}  Nc8 {[%clk 0:00:11]} 31. Bf1 {[%clk 0:00:06]}  Qd7 {[%clk 0:00:06]} 32. Bxa6 {[%clk 0:00:07]}  Bxa6 {[%clk 0:00:04]} 33. Qxa6+ {[%clk 0:00:08]}  Na7 {[%clk 0:00:04]} 34. Rc2 {[%clk 0:00:03]}  Qb7 {[%clk 0:00:04]} 35. Qa4 {[%clk 0:00:03]}  Qb5 {[%clk 0:00:02]} 36. Qa3 {[%clk 0:00:03]}  Qb7 {[%clk 0:00:02]} 37. Rec1 {[%clk 0:00:03]}  Qxe4 {[%clk 0:00:01]} 38. Qa5 {[%clk 0:00:02]}  Rb7 {[%clk 0:00:01]} 39. Qxd8+ {[%clk 0:00:02]}  Rb8 {[%clk 0:00:01]} 40. Qa5 {[%clk 0:00:02]}  Rb7 {[%clk 0:00:01]} 41. Qd8+ {[%clk 0:00:02]}  Rb8 {[%clk 0:00:02]} 42. Qxd6 {[%clk 0:00:02]}  Bf8 {[%clk 0:00:02]} 43. Qe5 {[%clk 0:00:02]}  Qb7 {[%clk 0:00:02]} 44. Qd4 {[%clk 0:00:02]}  Be7 {[%clk 0:00:01]} 45. Rc7 {[%clk 0:00:02]}  Qa6 {[%clk 0:00:01]} 46. Rxa7+ {[%clk 0:00:02]}  Qxa7 {[%clk 0:00:01]} 47. Qxa7# {[%clk 0:00:03]} 1-0


[Site "https://www.chess.com"]

[Event "Titled Tuesday Blitz May 31 Early 2022"]
[White "Pinheiro, Iung Alicio de O."]
[Black "Barria Zuniga, Daniel"]
[WhiteFideId "2104350"]
[BlackFideId "3400816"]
[WhiteElo "2283"]
[BlackElo "2414"]
[Result "1-0"]
[Round "11"]
[TimeControl "180+1"]
[Date "2022.06.01"]
[WhiteClock "0:00:06"]
[BlackClock "0:00:01"]

1. c4 {[%clk 0:02:58]}  f5 {[%clk 0:02:55]} 2. g3 {[%clk 0:02:59]}  Nf6 {[%clk 0:02:54]} 3. Bg2 {[%clk 0:02:59]}  e6 {[%clk 0:02:51]} 4. Nc3 {[%clk 0:02:56]}  Bb4 {[%clk 0:02:50]} 5. Qb3 {[%clk 0:02:47]}  Na6 {[%clk 0:02:29]} 6. a3 {[%clk 0:02:37]}  Be7 {[%clk 0:02:28]} 7. Qc2 {[%clk 0:02:30]}  O-O {[%clk 0:02:26]} 8. e4 {[%clk 0:01:36]}  fxe4 {[%clk 0:02:18]} 9. Nxe4 {[%clk 0:01:32]}  d5 {[%clk 0:02:17]} 10. Nxf6+ {[%clk 0:01:28]}  Bxf6 {[%clk 0:02:17]} 11. Ne2 {[%clk 0:01:22]}  c6 {[%clk 0:02:10]} 12. d4 {[%clk 0:01:03]}  e5 {[%clk 0:01:56]} 13. dxe5 {[%clk 0:00:54]}  Bxe5 {[%clk 0:01:57]} 14. cxd5 {[%clk 0:00:54]}  cxd5 {[%clk 0:01:48]} 15. Qd1 {[%clk 0:00:53]}  d4 {[%clk 0:01:44]} 16. O-O {[%clk 0:00:50]}  Kh8 {[%clk 0:01:39]} 17. Nf4 {[%clk 0:00:48]}  Nc5 {[%clk 0:01:32]} 18. b4 {[%clk 0:00:47]}  Ne6 {[%clk 0:01:24]} 19. Nd3 {[%clk 0:00:46]}  Bf6 {[%clk 0:01:23]} 20. h4 {[%clk 0:00:41]}  Nc7 {[%clk 0:01:19]} 21. Re1 {[%clk 0:00:40]}  Nd5 {[%clk 0:01:19]} 22. Qh5 {[%clk 0:00:36]}  Nc3 {[%clk 0:01:09]} 23. Nf4 {[%clk 0:00:28]}  Kg8 {[%clk 0:00:37]} 24. Bd2 {[%clk 0:00:24]}  g6 {[%clk 0:00:35]} 25. Qc5 {[%clk 0:00:17]}  Bf5 {[%clk 0:00:26]} 26. Bxc3 {[%clk 0:00:16]}  dxc3 {[%clk 0:00:25]} 27. Rad1 {[%clk 0:00:16]}  Qb6 {[%clk 0:00:23]} 28. Qc4+ {[%clk 0:00:14]}  Kh8 {[%clk 0:00:22]} 29. Be4 {[%clk 0:00:12]}  Bd4 {[%clk 0:00:20]} 30. Rf1 {[%clk 0:00:10]}  Rad8 {[%clk 0:00:18]} 31. Bxf5 {[%clk 0:00:10]}  Rxf5 {[%clk 0:00:18]} 32. Ne6 {[%clk 0:00:08]}  Bxf2+ {[%clk 0:00:17]} 33. Kg2 {[%clk 0:00:09]}  Re8 {[%clk 0:00:06]} 34. Qxc3+ {[%clk 0:00:08]}  Bd4 {[%clk 0:00:05]} 35. Nxd4 {[%clk 0:00:08]}  Qf6 {[%clk 0:00:05]} 36. Rxf5 {[%clk 0:00:06]}  gxf5 {[%clk 0:00:05]} 37. Rf1 {[%clk 0:00:06]}  Re4 {[%clk 0:00:04]} 38. Qc8+ {[%clk 0:00:06]}  Kg7 {[%clk 0:00:04]} 39. Nxf5+ {[%clk 0:00:05]}  Kg6 {[%clk 0:00:03]} 40. Qg8+ {[%clk 0:00:05]}  Kh5 {[%clk 0:00:03]} 41. Qxh7+ {[%clk 0:00:04]}  Kg4 {[%clk 0:00:02]} 42. Qg8+ {[%clk 0:00:04]}  Kh5 {[%clk 0:00:02]} 43. Qh7+ {[%clk 0:00:04]}  Kg4 {[%clk 0:00:02]} 44. Ne3+ {[%clk 0:00:05]}  Rxe3 {[%clk 0:00:02]} 45. Rxf6 {[%clk 0:00:05]}  Re2+ {[%clk 0:00:02]} 46. Rf2 {[%clk 0:00:06]}  Re3 {[%clk 0:00:01]} 47. Qg6# {[%clk 0:00:06]} 1-0


[Site "https://www.chess.com"]

[Event "Titled Tuesday Blitz May 31 Early 2022"]
[White "Rustemov, Alexander"]
[Black "Perez Gormaz, Matias"]
[WhiteFideId "4119002"]
[BlackFideId "3406342"]
[WhiteElo "2802"]
[BlackElo "2341"]
[Result "1-0"]
[Round "11"]
[TimeControl "180+1"]
[Date "2022.05.31"]
[WhiteClock "0:01:25"]
[BlackClock "0:00:02"]

1. d4 {[%clk 0:03:00]}  d5 {[%clk 0:02:59]} 2. c4 {[%clk 0:03:01]}  e6 {[%clk 0:02:58]} 3. Nc3 {[%clk 0:03:01]}  a6 {[%clk 0:02:59]} 4. cxd5 {[%clk 0:03:01]}  exd5 {[%clk 0:03:00]} 5. Nf3 {[%clk 0:03:01]}  c6 {[%clk 0:03:00]} 6. Bf4 {[%clk 0:02:55]}  Bd6 {[%clk 0:02:56]} 7. Bg3 {[%clk 0:02:52]}  Ne7 {[%clk 0:02:55]} 8. e3 {[%clk 0:02:52]}  O-O {[%clk 0:02:55]} 9. Qb3 {[%clk 0:02:45]}  b5 {[%clk 0:02:45]} 10. Be2 {[%clk 0:02:43]}  Re8 {[%clk 0:02:40]} 11. O-O {[%clk 0:02:42]}  Bxg3 {[%clk 0:02:37]} 12. hxg3 {[%clk 0:02:42]}  Bg4 {[%clk 0:02:33]} 13. Rfc1 {[%clk 0:02:39]}  Nd7 {[%clk 0:02:32]} 14. Qd1 {[%clk 0:02:34]}  a5 {[%clk 0:02:18]} 15. Ne1 {[%clk 0:02:33]}  Bxe2 {[%clk 0:02:16]} 16. Nxe2 {[%clk 0:02:34]}  Nf6 {[%clk 0:02:13]} 17. Nd3 {[%clk 0:02:33]}  Ne4 {[%clk 0:02:13]} 18. Rc2 {[%clk 0:02:32]}  Qd6 {[%clk 0:02:06]} 19. Rac1 {[%clk 0:02:31]}  Rac8 {[%clk 0:02:01]} 20. Nc3 {[%clk 0:02:29]}  f6 {[%clk 0:01:52]} 21. Qf3 {[%clk 0:02:24]}  Ng5 {[%clk 0:01:24]} 22. Qf4 {[%clk 0:02:23]}  Qd8 {[%clk 0:01:20]} 23. Qg4 {[%clk 0:02:08]}  Rb8 {[%clk 0:01:01]} 24. Ne2 {[%clk 0:01:51]}  b4 {[%clk 0:00:49]} 25. b3 {[%clk 0:01:50]}  Ne4 {[%clk 0:00:44]} 26. Nc5 {[%clk 0:01:38]}  Nxc5 {[%clk 0:00:43]} 27. Rxc5 {[%clk 0:01:37]}  Qc8 {[%clk 0:00:42]} 28. Qxc8 {[%clk 0:01:35]}  Rexc8 {[%clk 0:00:43]} 29. Rxa5 {[%clk 0:01:35]}  Ra8 {[%clk 0:00:42]} 30. Rxa8 {[%clk 0:01:35]}  Rxa8 {[%clk 0:00:43]} 31. Rc2 {[%clk 0:01:35]}  Kf7 {[%clk 0:00:42]} 32. Nf4 {[%clk 0:01:35]}  g5 {[%clk 0:00:39]} 33. Nd3 {[%clk 0:01:36]}  Rb8 {[%clk 0:00:40]} 34. g4 {[%clk 0:01:35]}  Ke6 {[%clk 0:00:40]} 35. g3 {[%clk 0:01:34]}  Kd6 {[%clk 0:00:40]} 36. Kg2 {[%clk 0:01:34]}  Ng6 {[%clk 0:00:14]} 37. Rc5 {[%clk 0:01:32]}  Nf8 {[%clk 0:00:02]} 38. Ra5 {[%clk 0:01:31]}  Nd7 {[%clk 0:00:03]} 39. Ra4 {[%clk 0:01:30]}  Rh8 {[%clk 0:00:02]} 40. Nxb4 {[%clk 0:01:25]} 1-0


[Site "https://www.chess.com"]